bitfinex-derivatives/quotes_ETHF0:USTF0_20251021
["timestamp","ask_amount","ask_price","bid_price","bid_amount"]
[1761067986030,1.1429,4007.7,4007.6,0.44897]
[1761067986231,0.8232,4007.7,4007.6,0.44897]
[1761067986534,1.27224,4007.0,4006.9,3.2078]
[1761067986735,0.44908,4006.6,4006.4,0.00234126]
[1761067987036,0.8232,4005.8,4005.7,3.2078]
[1761067987234,1.27244,4005.3,4004.7,3.2078]
[1761067987436,41.1197,4005.9,4004.8,0.44927]
[1761067987437,0.8232,4004.9,4004.8,0.44927]
[1761067987628,41.1197,4005.9,4005.0,0.44925]
[1761067987629,0.4492,4005.6,4005.0,0.44925]
[1761067987829,0.8232,4005.8,4004.7,3.65708]
[1761067988030,0.8232,4005.4,4005.0,0.44925]
[1761067988343,0.8232,4005.2,4004.7,3.21027006]
[1761067988840,0.8232,4004.9,4004.7,3.21027006]
[1761067989034,0.8232,4004.8,4004.7,3.21027006]
[1761067989341,0.8232,4004.8,4004.7,0.00247006]
[1761067991539,0.8232,4004.8,4004.7,3.21027006]
[1761067992133,0.8232,4004.8,4004.7,0.00247006]
[1761067994537,0.8232,4004.8,4004.7,3.21027006]
[1761067995237,0.8232,4004.8,4004.7,0.00247006]
[1761067998532,0.8232,4004.8,4003.3,0.17446713]
[1761067998533,0.4494,4003.8,4003.3,0.17446713]
[1761067998733,0.8232,4004.0,4003.2,3.2078]
[1761067998938,0.8232,4004.0,4003.8,0.44939]
[1761067999347,0.8232,4004.0,4003.7,3.2078]
[1761067999542,0.8232,4004.0,4003.7,3.20985304]
[1761067999840,0.8232,4004.0,4003.8,0.44939]
[1761068000040,1.27251,4004.6,4004.0,0.44936]
[1761068000345,0.8232,4004.5,4004.3,0.44934]
[1761068000544,0.8232,4004.8,4004.2,3.2078]
[1761068000739,0.44931,4004.6,4004.2,3.2078]
[1761068000943,0.7745,4004.5,4004.2,3.65714]
[1761068001232,0.3258,4004.1,4003.9,0.44938]
[1761068001440,0.3258,4004.1,4003.7,3.20985304]
[1761068001441,0.7745,4004.0,4003.8,0.44939]
[1761068002046,0.7745,4004.6,4004.2,0.44934]
[1761068002343,0.7745,4004.6,4004.2,0.44935]
[1761068002540,0.7745,4004.5,4004.3,0.44933]
[1761068002739,0.7745,4004.5,4003.9,9.863]
[1761068002740,0.7745,4004.4,4004.0,0.44936]
[1761068003039,0.7745,4004.4,4003.7,3.95075304]
[1761068003040,0.7876,4003.8,4003.7,3.20985304]
[1761068003438,0.7876,4004.3,4004.0,0.44936]
[1761068003641,0.7876,4004.3,4003.7,3.20985304]
[1761068003843,0.7876,4004.1,4003.9,0.44938]
[1761068004043,0.7876,4004.1,4004.0,0.44937]
[1761068004243,0.7876,4004.8,4004.6,0.44929]
[1761068004448,0.7876,4004.8,4004.0,1.85293]
[1761068004449,0.7876,4004.8,4004.7,3.2078]
[1761068004641,0.44929,4004.7,4004.1,3.2078]
[1761068004844,1.23699,4003.8,4003.7,0.00205304]
[1761068005048,1.23708,4003.0,4002.9,3.2078]
[1761068005349,0.7876,4002.3,4002.1,0.44957]
[1761068005550,0.7876,4002.3,4002.1,0.16831629]
[1761068005735,0.7876,4002.3,4001.8,3.2078]
[1761068005736,0.7876,4002.9,4001.8,3.2078]
[1761068005935,0.78959194,4002.9,4002.8,3.2078]
[1761068006443,0.00199194,4002.9,4002.8,8.9373]
[1761068006748,0.00199194,4002.9,4002.8,8.2078]
[1761068006951,0.00199194,4002.9,4002.8,3.2078]
[1761068007147,0.78959194,4002.9,4002.8,3.2078]
[1761068007342,0.3243,4004.0,4003.5,0.44943]
[1761068007343,0.7876,4003.6,4003.5,0.44943]
[1761068007643,0.7876,4003.9,4003.8,0.44938]
[1761068008051,0.7876,4003.9,4003.8,3.65718]
[1761068008447,0.78949806,4003.9,4003.8,3.65718]
[1761068008942,0.00189806,4003.9,4003.8,3.2078]
[1761068009150,0.78949806,4003.9,4003.3,3.2078]
[1761068009338,0.7876,4003.7,4003.3,3.2078]
[1761068010051,0.44939,4003.8,4003.1,9.856]
[1761068010052,0.7876,4003.8,4003.1,9.856]
[1761068010349,0.7876,4003.5,4003.1,10.30547]
[1761068010750,0.7876,4003.4,4003.0,0.44948]
[1761068010951,0.7876,4003.4,4002.9,8.216]
[1761068011151,0.7876,4003.4,4003.3,3.2078]
[1761068011356,0.00189806,4003.9,4003.3,3.2078]
[1761068011357,0.78949806,4003.9,4003.3,3.2078]
[1761068012044,0.78949806,4003.9,4003.5,0.44942]
[1761068012344,0.7876,4003.8,4003.3,3.65724]
[1761068012547,0.45127806,4003.9,4003.8,0.7295]
[1761068012548,0.00189806,4003.9,4003.8,0.7295]
[1761068012748,0.78949806,4003.9,4003.8,3.2078]
[1761068012941,0.7876,4003.7,4003.3,0.44944]
[1761068013146,0.7876,4003.7,4003.6,3.2078]
[1761068013345,0.00189806,4003.9,4003.7,1.1789]
[1761068013547,0.00189806,4003.9,4003.8,0.7295]
[1761068013848,0.78949806,4003.9,4003.8,9.852]
[1761068014242,0.7876,4003.8,4003.6,3.2078]
[1761068014448,0.7876,4003.7,4003.4,0.44943]
[1761068014646,0.7876,4003.7,4003.5,0.44942]
[1761068014950,0.78949806,4003.9,4003.5,3.2078]
[1761068015154,0.7876,4003.8,4003.5,3.2078]
[1761068015352,0.7876,4003.8,4003.5,3.65722]
[1761068015745,0.00189806,4003.9,4003.8,0.44939]
[1761068016240,0.78949806,4003.9,4003.7,0.4494]
[1761068016553,0.7876,4003.7,4003.3,0.44944]
[1761068016744,0.7876,4003.4,4003.0,10.29748]
[1761068017047,0.7876,4003.3,4003.0,13.0558]
[1761068017242,0.7876,4003.3,4003.1,0.44946]
[1761068017437,0.7876,4003.7,4003.0,15.80106509]
[1761068017638,0.7876,4003.7,4003.5,3.65722]
[1761068019043,0.7876,4003.8,4003.5,3.2078]
[1761068019252,0.7876,4003.6,4003.2,0.44946]
[1761068020253,0.00189806,4003.9,4003.0,12.9948]
[1761068020254,0.3243,4003.2,4003.0,3.2078]
[1761068020552,0.7876,4003.1,4003.0,3.65728]
[1761068020852,0.00189806,4003.9,4003.2,0.44946]
[1761068021046,0.7876,4003.7,4003.5,3.2078]
[1761068021455,0.7876,4003.7,4003.5,3.65722]
[1761068021651,0.44941,4003.6,4003.5,3.2078]
[1761068021850,1.23701,4003.6,4003.5,3.2078]
[1761068022052,0.44957,4002.2,4002.0,0.89207509]
[1761068022342,0.7876,4001.9,4001.8,0.00197014]
[1761068023548,3.2078,4002.0,4001.9,0.4496]
[1761068023749,1.1119,4002.4,4002.0,0.44959]
[1761068023750,0.7876,4002.2,4002.0,0.44959]
[1761068024148,0.7876,4002.7,4002.5,0.44953]
[1761068024354,0.7876,4003.1,4002.8,0.4495]
[1761068024551,0.7876,4003.1,4002.1,4.33174]
[1761068024552,0.7876,4002.7,4002.1,3.2078]
[1761068024951,0.7876,4002.7,4002.1,4.0187]
[1761068025154,0.7876,4002.7,4002.2,0.8109]
[1761068025352,0.7876,4003.0,4002.7,0.44951]
[1761068026356,0.7876,4003.0,4002.1,3.2078]
[1761068026357,0.7876,4002.4,4002.1,3.2078]
[1761068026564,0.7876,4002.3,4001.8,0.00197014]
[1761068026863,0.7876,4002.2,4002.0,0.44959]
[1761068027163,0.7876,4002.2,4001.8,0.00197014]
[1761068027164,0.7876,4002.3,4001.8,0.00197014]
[1761068027368,0.7876,4002.3,4001.9,0.4496]
[1761068027562,0.7876,4002.1,4001.8,0.00197014]
[1761068027756,0.7876,4002.1,4001.9,0.4496]
[1761068028060,0.7876,4002.5,4001.8,0.00197014]
[1761068028364,1.23715,4002.4,4002.0,1.26048]
[1761068028663,0.7876,4002.4,4002.2,0.44956]
[1761068028857,0.7876,4002.4,4002.1,0.8109]
[1761068029051,0.7876,4002.2,4001.8,1.26248014]
[1761068029256,0.7876,4002.2,4002.0,0.44959]
[1761068029754,0.7876,4002.5,4002.4,0.44954]
[1761068029960,0.3243,4003.2,4002.4,0.44954]
[1761068029961,1.2371,4002.8,4002.4,1.26044]
[1761068030159,0.7876,4002.8,4002.5,0.44953]
[1761068030456,0.7876,4002.8,4002.4,0.8109]
[1761068030457,0.7876,4002.7,4002.4,0.44954]
[1761068030963,0.7876,4002.7,4002.5,0.44953]
[1761068031160,0.8195,4003.1,4002.5,0.7873]
[1761068031368,3.2078,4003.2,4003.0,1.23678]
[1761068031557,0.8195,4003.1,4002.9,0.44949]
[1761068032169,0.8195,4003.1,4002.6,0.44952]
[1761068032364,0.8195,4002.5,4002.4,0.44955]
[1761068033160,0.8195,4002.5,4002.2,0.7873]
[1761068033369,0.8195,4002.5,4002.1,13.0398]
[1761068033664,0.44954,4002.5,4002.1,13.8271]
[1761068033865,0.8195,4002.3,4001.8,0.00197014]
[1761068034066,0.4496,4001.9,4001.8,0.00197014]
[1761068034264,1.2691,4001.9,4001.8,0.00197014]
[1761068034962,0.8195,4001.9,4001.8,0.00197014]
[1761068035262,1.2691,4001.9,4001.8,0.00197014]
[1761068036360,9.4769,4001.9,4001.8,0.00197014]
[1761068036760,4.4769,4001.9,4001.8,0.00197014]
[1761068037566,4.0273,4001.9,4001.8,0.00197014]
[1761068037764,3.2078,4001.9,4001.8,0.78927014]
[1761068038062,0.8195,4002.4,4002.0,0.44958]
[1761068038364,0.8195,4002.4,4001.8,0.00197014]
[1761068038365,0.8195,4001.9,4001.8,0.00197014]
[1761068040366,3.2078,4002.0,4001.8,0.45157014]
[1761068040562,0.8195,4001.9,4001.8,0.00197014]
[1761068040969,0.2983,4002.4,4001.9,0.7873]
[1761068040970,0.8195,4002.3,4001.9,0.7873]
[1761068041269,3.2078,4002.5,4002.4,0.44954]
[1761068041463,3.2078,4002.5,4002.4,1.23684]
[1761068041667,0.4496,4001.9,4001.8,0.00197014]
[1761068041868,4.4769,4001.9,4001.8,0.00197014]
[1761068042166,4.0273,4001.9,4001.8,0.00197014]
[1761068042566,4.4769,4001.9,4001.8,0.00197014]
[1761068042969,9.4769,4001.9,4001.8,0.00197014]
[1761068044271,4.4769,4001.9,4001.8,0.00197014]
[1761068044671,4.0273,4001.9,4001.8,0.00197014]
[1761068044862,2.7015897,4001.9,4001.8,6.23888014]
[1761068045064,0.8195,4003.1,4001.8,8.20977014]
[1761068045273,0.8195,4003.6,4003.2,0.44945]
[1761068045473,0.8195,4003.6,4003.4,0.44943]
[1761068046162,0.45127806,4003.9,4003.8,0.7873]
[1761068046163,0.00189806,4003.9,4003.8,0.7873]
[1761068046374,0.84634734,4005.0,4004.7,0.7873]
[1761068046664,0.84634734,4005.0,4004.1,0.44935]
[1761068046665,0.8195,4004.9,4004.1,0.44935]
[1761068046874,0.8195,4004.7,4004.4,3.9951]
[1761068047071,0.8195,4004.9,4004.5,0.7873]
[1761068047270,0.8195,4004.9,4004.6,1.23659]
[1761068047459,0.8195,4004.7,4004.4,3.2078]
[1761068047661,0.84634734,4004.9,4004.6,0.4493]
[1761068047874,42.79099469,4005.6,4004.4,3.2078]
[1761068047875,0.84634734,4005.0,4004.8,0.44927]
[1761068048071,0.84634734,4005.1,4004.9,4.44436]
[1761068048374,0.84634734,4005.2,4005.1,0.44924]
[1761068048562,0.84634734,4005.2,4005.1,1.23654]
[1761068048763,0.84849481,4005.2,4005.1,1.23654]
[1761068048965,0.00214747,4005.2,4005.1,0.7873]
[1761068049166,0.84849481,4005.2,4004.9,3.65706]
[1761068049373,0.84849481,4005.2,4005.0,0.7873]
[1761068049565,0.44925,4005.0,4004.9,3.2078]
[1761068049764,0.44925,4005.0,4004.6,9.81351703]
[1761068050074,0.84634734,4005.1,4004.7,0.7873]
[1761068050271,0.84634734,4005.1,4004.8,0.7873]
[1761068050474,0.8195,4004.7,4004.6,13.02131703]
[1761068050773,0.8195,4004.7,4004.6,0.00251703]
[1761068051164,1.12325,4004.7,4003.6,3.2078]
[1761068051468,1.12325,4004.7,4003.7,0.7873]
[1761068051469,0.8499782,4004.6,4003.7,0.7873]
[1761068051668,0.8195,4004.7,4003.7,0.7873]
[1761068051669,0.44932,4004.5,4004.3,3.2078]
[1761068051865,0.8195,4004.3,4003.6,3.2078]
[1761068052174,0.8195,4003.8,4003.6,3.2078]
[1761068052367,1.26885,4004.2,4003.6,3.66009665]
[1761068052668,0.8195,4004.2,4004.1,3.2078]
[1761068052873,2.1187482,4004.8,4004.3,1.23663]
[1761068053069,2.1187482,4004.8,4004.5,3.2078]
[1761068053070,0.8195,4004.8,4004.5,3.2078]
[1761068053269,0.8499782,4005.0,4004.5,3.2078]
[1761068053467,0.44928,4004.8,4004.6,0.7873]
[1761068053667,0.8195,4004.9,4004.6,0.7873]
[1761068053877,0.8499782,4005.0,4004.7,0.7873]
[1761068054079,0.8499782,4005.1,4004.9,0.7873]
[1761068054378,0.8195,4005.1,4005.0,3.2078]
[1761068054682,0.85212567,4005.2,4005.0,3.9951]
[1761068054878,0.85212567,4005.2,4005.1,0.7873]
[1761068055174,0.00214747,4005.2,4005.1,0.7873]
[1761068055877,0.00214747,4005.2,4005.1,5.7873]
[1761068056174,0.00214747,4005.2,4005.1,0.96435447]
[1761068056374,0.00214747,4005.2,4005.0,3.2078]
[1761068056572,0.00214747,4005.2,4005.1,0.7873]
[1761068057074,0.00214747,4005.2,4005.1,0.966349]
[1761068057275,0.8499782,4005.6,4005.1,5.179049]
[1761068057479,0.8499782,4005.6,4005.5,4.4443]
[1761068057777,0.8499782,4005.6,4005.5,3.9951]
[1761068058374,0.85243334,4005.6,4005.5,3.2078]
[1761068058577,1.66833334,4005.6,4005.0,3.9951]
[1761068058773,0.8499782,4005.5,4005.2,0.44922]
[1761068058976,0.85243334,4005.6,4005.5,0.8076]
[1761068059177,0.00245514,4005.6,4005.5,0.8076]
[1761068059677,0.8499782,4006.1,4006.0,1.25674]
[1761068059876,1.26952102,4006.4,4006.3,0.8076]
[1761068060079,1.26952102,4006.6,4006.5,0.8076]
[1761068060282,1.26952102,4006.8,4006.7,0.8076]
[1761068060471,2.50859469,4007.2,4006.8,0.8076]
[1761068060674,0.8159,4007.1,4007.0,3.2078]
[1761068060872,1.69269469,4007.2,4007.1,0.7866]
[1761068061275,1.69269469,4007.3,4007.1,0.7866]
[1761068061474,2.48349469,4007.2,4007.0,3.2078]
[1761068061878,0.7908,4007.1,4007.0,3.2078]
[1761068062072,5.0,4007.1,4006.4,3.2078]
[1761068062380,1.2727952,4006.6,4006.4,3.2078]
[1761068062582,0.7908,4006.5,4006.4,3.2078]
[1761068062770,1.2727952,4006.6,4006.4,3.9944]
[1761068062976,2.0635952,4006.6,4006.4,3.2078]
[1761068063375,0.7908,4006.5,4006.4,3.2078]
[1761068063681,2.14611027,4006.9,4006.4,3.2078]
[1761068063878,2.14611027,4006.9,4006.4,3.9944]
[1761068063879,0.7908,4006.8,4006.4,3.9944]
[1761068064082,0.7908,4006.8,4006.4,3.65689]
[1761068064276,1.273607,4006.5,4006.4,3.9944]
[1761068064477,2.064407,4006.5,4006.4,3.21046652]
[1761068065383,1.273607,4006.5,4006.4,3.99706652]
[1761068066185,1.273607,4006.5,4006.4,0.00266652]
[1761068066186,0.7908,4006.5,4006.4,0.00266652]
[1761068067084,1.24002,4005.5,4005.0,0.44926]
[1761068067385,0.3115,4005.6,4005.0,0.44926]
[1761068067386,0.7908,4005.4,4005.0,0.44926]
[1761068067582,0.7908,4005.9,4005.3,3.2078]
[1761068067784,0.7908,4005.4,4004.8,3.2078]
[1761068068380,0.7908,4005.2,4004.8,3.65709]
[1761068068577,1.12296,4005.9,4004.8,3.65709]
[1761068068578,0.7908,4005.0,4004.8,3.21027483]
[1761068068779,0.7908,4005.0,4004.8,0.00247483]
[1761068069175,1.24007,4005.0,4004.8,0.00247483]
[1761068069381,0.7908,4004.9,4004.8,0.00247483]
[1761068069776,0.7908,4005.2,4004.8,4.44616483]
[1761068069980,0.44922,4005.5,4005.0,1.23586]
[1761068070282,0.7908,4005.4,4005.1,0.44926]
[1761068070579,1.5849385,4005.6,4005.1,0.44926]
[1761068070580,0.7908,4005.3,4005.1,0.44926]
[1761068070878,4.90571801,4006.1,4005.1,0.44926]
[1761068070879,1.2734385,4006.1,4005.9,0.44917]
[1761068071084,1.2734385,4006.3,4006.2,0.7866]
[1761068071477,2.11875387,4007.2,4006.3,1.23573]
[1761068071478,1.2734385,4006.4,4006.3,1.23573]
[1761068071689,1.2734385,4006.7,4006.5,0.4491]
[1761068071885,1.2734385,4006.7,4006.6,3.9944]
[1761068072091,0.00288551,4007.2,4007.1,0.44904]
[1761068072389,1.69791801,4007.6,4007.5,0.44899]
[1761068072580,1.69791801,4007.7,4007.5,0.44899]
[1761068072775,1.69791801,4007.7,4007.6,8.2078]
[1761068072987,2.11586836,4008.2,4007.7,0.44897]
[1761068073390,0.02460875,4007.8,4007.7,0.45087702]
[1761068073591,0.02460875,4007.8,4007.7,5.45087702]
[1761068073887,0.02460875,4007.8,4007.7,5.62341417]
[1761068075186,0.02460875,4007.8,4007.7,0.62341417]
[1761068075490,0.02460875,4007.8,4007.7,10.39641417]
[1761068075789,2.51580716,4007.8,4007.7,0.00190702]
[1761068076288,1.7259172,4007.8,4007.7,0.00190702]
[1761068076481,2.5167172,4007.8,4007.7,0.00190702]
[1761068076681,0.81540875,4007.8,4007.7,0.00190702]
[1761068077683,0.7908,4007.6,4006.6,3.2078]
[1761068077877,0.7908,4007.3,4007.2,3.2078]
[1761068078081,0.7908,4007.3,4006.6,3.2078]
[1761068078279,0.7908,4007.3,4006.8,0.44906]
[1761068078590,0.7908,4007.3,4007.2,3.2078]
[1761068078786,0.7908,4007.3,4007.2,3.65683]
[1761068079084,1.23982,4007.3,4006.8,0.00302498]
[1761068079284,0.7908,4007.2,4006.8,0.00302498]
[1761068079488,0.3115,4007.7,4006.8,1.12570498]
[1761068079690,0.3115,4007.7,4007.6,3.2078]
[1761068080185,0.3115,4007.7,4007.2,9.764]
[1761068080186,0.7908,4007.6,4007.2,9.763]
[1761068080387,0.7908,4007.6,4007.1,3.2078]
[1761068080589,0.7908,4007.6,4006.8,0.00302498]
[1761068080590,0.44899,4007.5,4006.9,6.75706]
[1761068080791,0.7908,4007.6,4007.1,3.2078]
[1761068081092,0.7908,4007.6,4007.4,0.44899]
[1761068081483,0.7908,4007.6,4007.3,0.44901]
[1761068081780,0.7908,4007.6,4006.8,0.00302498]
[1761068082092,0.7908,4007.6,4007.5,0.44898]
[1761068083285,0.02460875,4007.8,4007.7,0.44897]
[1761068083485,0.81540875,4007.8,4007.7,10.20697]
[1761068084196,0.7908,4007.7,4007.3,13.41481]
[1761068084395,0.7908,4007.7,4007.3,12.9658]
[1761068084597,0.7908,4007.6,4007.2,0.44902]
[1761068084891,0.44897,4007.7,4006.9,0.44905]
[1761068084892,0.7908,4007.7,4006.9,0.44905]
[1761068085091,0.7908,4007.7,4006.9,7.848]
[1761068085293,0.7908,4007.7,4007.5,0.44899]
[1761068086989,1.23977,4007.7,4007.4,0.449]
[1761068087197,0.7908,4007.6,4007.4,0.449]
[1761068087499,0.7908,4007.4,4007.3,3.2078]
[1761068089295,0.02460875,4007.8,4007.7,0.44897]
[1761068089888,0.81540875,4007.8,4007.7,0.44897]
[1761068090092,8.75e-06,4007.8,4007.7,10.19897]
[1761068090300,8.75e-06,4007.8,4007.7,15.19897]
[1761068090592,8.75e-06,4007.8,4007.7,10.19897]
[1761068090792,0.44897,4007.7,4007.4,0.449]
[1761068090983,0.77910875,4007.8,4007.3,3.2078]
[1761068090984,0.7791,4007.6,4007.3,3.2078]
[1761068091189,1.22808,4007.6,4007.3,3.65681]
[1761068091388,0.7791,4007.5,4007.4,0.449]
[1761068091584,8.75e-06,4007.8,4007.7,0.44897]
[1761068091787,8.75e-06,4007.8,4007.7,10.19597]
[1761068091983,8.75e-06,4007.8,4007.7,15.19597]
[1761068093906,8.75e-06,4007.8,4007.7,10.19597]
[1761068094401,8.75e-06,4007.8,4007.7,0.44897]
[1761068094593,8.75e-06,4007.8,4007.7,5.44897]
[1761068094895,8.75e-06,4007.8,4007.7,15.19197]
[1761068096092,8.75e-06,4007.8,4007.7,10.19197]
[1761068098198,8.75e-06,4007.8,4007.7,0.44897]
[1761068098393,8.75e-06,4007.8,4007.7,10.18797]
[1761068098897,8.75e-06,4007.8,4007.7,0.44897]
[1761068099198,8.75e-06,4007.8,4007.7,10.18597]
[1761068099497,8.75e-06,4007.8,4007.7,0.44897]
[1761068099696,8.75e-06,4007.8,4007.7,10.18497]
[1761068100092,8.75e-06,4007.8,4007.7,9.736]
[1761068100289,0.7791,4007.4,4007.3,3.2078]
[1761068100595,8.75e-06,4007.8,4007.7,0.44897]
[1761068100796,8.75e-06,4007.8,4007.6,0.44898]
[1761068100997,8.75e-06,4007.8,4007.3,3.2078]
[1761068101197,8.75e-06,4007.8,4007.6,0.44898]
[1761068101400,8.75e-06,4007.8,4007.4,0.449]
[1761068101588,8.75e-06,4007.8,4007.7,9.734]
[1761068103295,8.75e-06,4007.8,4007.5,0.66843464]
[1761068103512,8.75e-06,4007.8,4007.6,9.731]
[1761068103706,8.75e-06,4007.8,4007.4,0.449]
[1761068104007,8.75e-06,4007.8,4007.6,0.44897]
[1761068104199,8.75e-06,4007.8,4007.5,0.66843464]
[1761068104402,8.75e-06,4007.8,4007.3,4.09987509]
[1761068104403,8.75e-06,4007.8,4007.4,1.11743464]
[1761068104598,0.7791,4007.5,4007.4,10.178]
[1761068104801,8.75e-06,4007.8,4007.4,10.39743464]
[1761068105101,1.0851,4007.5,4007.4,9.729]
[1761068105399,1.0851,4007.5,4007.4,10.39743464]
[1761068105591,8.75e-06,4007.8,4007.6,0.44897]
[1761068106209,8.75e-06,4007.8,4007.6,0.66928891]
[1761068106589,8.75e-06,4007.8,4007.5,0.44899]
[1761068106590,0.7791,4007.7,4007.5,0.66928891]
[1761068106801,0.7791,4006.9,4006.8,3.37545009]
[1761068106997,0.7791,4006.9,4006.8,3.21082498]
[1761068107201,5.7791,4006.9,4006.8,3.21082498]
[1761068107398,5.7791,4006.9,4006.8,0.00302498]
[1761068108509,0.7791,4006.9,4006.8,0.45209498]
[1761068109305,0.7791,4007.4,4007.2,0.44902]
[1761068109504,0.7791,4007.4,4007.3,12.9318]
[1761068109702,8.75e-06,4007.8,4007.7,0.44897]
[1761068110410,8.75e-06,4007.8,4007.6,0.44898]
[1761068110800,0.306,4007.5,4007.4,1.34107509]
[1761068111015,1.0851,4007.5,4007.4,0.89207509]
[1761068111197,8.75e-06,4007.8,4007.7,0.44897]
[1761068111598,8.75e-06,4007.8,4007.7,5.44897]
[1761068111802,8.75e-06,4007.8,4007.4,1.78308678]
[1761068111996,0.7791,4007.4,4007.3,4.1024519]
[1761068112196,1.22812,4007.3,4006.8,12.93082498]
[1761068112402,0.7791,4007.3,4007.1,0.44903]
[1761068112704,0.7791,4007.2,4006.8,12.93082498]
[1761068112901,0.7791,4006.9,4006.8,3.21082498]
[1761068113103,0.7791,4006.5,4006.1,1.34189325]
[1761068113405,0.7791,4005.5,4005.0,4.99896325]
[1761068113609,0.7791,4005.3,4005.0,3.2078]
[1761068114019,0.7791,4005.1,4005.0,3.2078]
[1761068114507,0.7791,4006.7,4005.0,8.21058953]
[1761068114707,0.7791,4006.7,4006.6,3.2078]
[1761068115016,0.7791,4007.2,4006.6,3.2078]
[1761068115197,0.306,4007.5,4007.1,3.2078]
[1761068115505,0.306,4007.5,4007.3,0.44901]
[1761068115506,0.7791,4007.4,4007.3,0.44901]
[1761068115810,0.7791,4007.4,4007.2,10.16601]
[1761068116302,0.7791,4007.4,4007.1,12.9248]
[1761068116507,0.7791,4007.4,4007.1,9.717]
[1761068116707,0.7791,4007.4,4006.9,9.716]
[1761068116907,0.7791,4007.4,4007.2,3.2078]
[1761068117299,0.7791,4007.4,4006.9,10.16505]
[1761068117509,1.0851,4006.8,4006.7,3.2078]
[1761068117811,1.0851,4006.8,4006.0,1.34189325]
[1761068117812,0.7791,4006.6,4006.5,9.714]
[1761068118102,0.7791,4006.5,4006.3,9.714]
[1761068118509,0.7634,4006.4,4006.3,9.714]
[1761068119706,0.7634,4006.4,4006.3,10.16312]
[1761068120510,0.7634,4006.7,4006.5,0.4491]
[1761068121019,0.70270875,4007.8,4006.7,1.12271]
[1761068121304,0.7027,4007.6,4007.2,3.2078]
[1761068121504,0.7027,4007.5,4007.4,0.449]
[1761068121907,8.75e-06,4007.8,4007.6,0.44898]
[1761068122100,8.75e-06,4007.8,4007.7,3.2078]
[1761068122302,0.7027,4008.9,4007.7,8.2078]
[1761068122501,0.7027,4008.9,4008.2,3.2078]
[1761068122715,0.7027,4008.9,4008.4,0.44889]
[1761068122912,0.7027,4009.4,4008.3,9.709]
[1761068123114,0.7027,4009.4,4008.6,0.44886]
[1761068123305,0.7027,4009.4,4008.9,3.2078]
[1761068123503,0.7027,4010.0,4009.1,3.2078]
[1761068123803,0.7027,4010.0,4009.6,3.2078]
[1761068124006,0.7027,4010.0,4009.2,9.707]
[1761068124007,0.7027,4009.8,4009.2,9.707]
[1761068124207,3.2078,4010.2,4009.3,9.707]
[1761068124208,0.2969,4009.5,4009.3,9.707]
[1761068124408,0.7027,4009.4,4009.3,9.707]
[1761068124805,0.7027,4009.4,4008.2,1.34189325]
[1761068124806,0.2969,4008.6,4008.2,1.34189325]
[1761068125010,0.7027,4007.6,4007.5,3.2078]
[1761068125407,0.7027,4007.6,4007.5,3.21013783]
[1761068125609,5.7027,4007.6,4007.5,0.00233783]
[1761068125808,0.2969,4006.8,4006.5,3.2078]
[1761068126011,0.7027,4006.7,4006.5,7.6748]
[1761068126210,0.7027,4006.7,4006.5,3.2078]
[1761068126211,0.7027,4006.6,4006.5,3.2078]
[1761068126416,0.7027,4006.1,4006.0,6.835]
[1761068126716,0.7027,4006.7,4006.0,6.835]
[1761068127014,0.00232616,4006.7,4006.6,3.2078]
[1761068127208,0.00232616,4006.7,4006.4,0.44911]
[1761068127209,0.70502616,4006.7,4006.4,0.44911]
[1761068127409,0.00232616,4006.7,4006.6,3.2078]
[1761068127814,0.70502616,4006.7,4006.6,9.703]
[1761068128014,0.70502616,4006.7,4006.6,12.9108]
[1761068128317,0.00232616,4006.7,4006.6,12.9108]
[1761068128909,0.70502616,4006.7,4006.6,12.9108]
[1761068129420,0.00232616,4006.7,4006.6,12.9108]
[1761068130419,0.70502616,4006.7,4006.6,12.9108]
[1761068130709,0.00232616,4006.7,4006.6,12.9108]
[1761068131309,0.00232616,4006.7,4006.6,17.9108]
[1761068131710,4.35946,4007.8,4006.6,17.9108]
[1761068131910,0.7027,4008.2,4007.2,3.2078]
[1761068132113,0.7027,4008.2,4006.7,1.12269]
[1761068132114,0.7027,4008.1,4007.7,3.2078]
[1761068132413,0.7027,4008.2,4007.8,9.698]
[1761068132608,0.44895,4007.9,4006.7,1.34189325]
[1761068132911,1.15179,4006.6,4006.5,1.34189325]
[1761068133214,0.7027,4007.2,4006.5,9.697]
[1761068133523,0.7027,4007.2,4006.9,3.2078]
[1761068133709,0.7027,4007.2,4006.8,0.44906]
[1761068133918,0.7027,4007.2,4006.9,3.2078]
[1761068134216,0.7027,4007.2,4007.0,0.44904]
[1761068134718,0.7027,4007.2,4007.1,9.696]
[1761068137012,0.44902,4007.3,4007.1,9.696]
[1761068137213,0.7027,4007.3,4007.1,10.14503]
[1761068137414,0.7027,4007.6,4007.1,9.696]
[1761068137615,0.7027,4007.6,4007.4,0.44899]
[1761068137814,0.7027,4007.5,4007.4,0.44899]
[1761068139220,0.002294,4007.9,4007.8,0.44896]
[1761068139417,0.002294,4007.9,4007.8,13.34776]
[1761068140031,0.704994,4007.9,4007.8,9.691]
[1761068140228,0.704994,4007.9,4007.8,12.8988]
[1761068140527,0.002294,4007.9,4007.8,12.8988]
[1761068141226,0.704994,4007.9,4007.8,12.8988]
[1761068141429,0.704994,4007.9,4006.8,1.34189325]
[1761068141430,0.7027,4007.8,4007.3,3.2078]
[1761068141622,0.7027,4007.6,4007.4,10.137]
[1761068141823,0.002294,4007.9,4007.7,0.44897]
[1761068142023,0.704994,4007.9,4007.8,3.2078]
[1761068142629,0.002294,4007.9,4007.8,3.2078]
[1761068142826,0.704994,4007.9,4007.8,3.2078]
[1761068143324,0.7027,4007.8,4007.7,3.2078]
[1761068144431,1.15166,4007.8,4007.4,9.688]
[1761068144631,0.7027,4007.7,4007.5,0.44899]
[1761068145330,0.44896,4007.8,4007.2,4.10066272]